Cogmind - Beta 14 @@@ ROGUE MODE // 2024.11.17 @ 09:02:44 Player: Shimmyarah Result: Destroyed by IQ-XNF(B) with Slug Cannon Performance ------------- Evolutions (4) 2000 Regions Visited (8) 1600 Robots Destroyed (72) 360 Value Destroyed (1588) 1588 Prototype IDs (15) 300 Alien Tech Used (0) 0 Bonus (300) 300 TOTAL SCORE: 6148 Bonus ------- Registered with UFD 300 Cogmind --------- Core Integrity 0/850 Matter 300/300 Energy 70/100 System Corruption 15% Temperature Cool (0) Movement Core (350) Ox6 Location -6/Zion Parts ------- > --- POWER (2) -------- (None) > --- PROPULSION (3) --- (None) > --- UTILITY (6) ------ Coolant Injector Large Storage Unit Advanced Terrain Scan Processor Hacking Suite > --- WEAPON (4) ------- (None) > --- INVENTORY (15) --- Makeshift Power Source Light Fission Core Makeshift Leg Compact Battery (200) Compact Battery (200) Makeshift Terrain Scan Processor Makeshift Transmission Jammer Hacking Suite Makeshift Hacking Suite Makeshift System Shield Heavy Laser Plasma Rifle Heavy Battle Rifle Power Maul Makeshift Spear Peak State ------------ > --- POWER ------------ Light Ion Engine Light Nuclear Core > --- PROPULSION ------- Spiked Medium Treads Armored Wheel Gravmag System > --- UTILITY ---------- Coolant Injector Large Storage Unit Advanced Terrain Scan Processor Particle Charger Improved Hardlight Generator Hacking Suite > --- WEAPON ----------- High-powered Shock Rifle Thermic Laser Barrage Gun Heavy Battle Rifle > --- INVENTORY -------- Light Deuterium Engine Makeshift Power Source Light Fission Core Nuclear Pulse Thruster Compact Battery Compact Battery Makeshift Terrain Scan Processor Makeshift Transmission Jammer Hacking Suite Makeshift System Shield Heavy Laser Plasma Rifle Power Maul Makeshift Spear CR-A16's Pointy Stick [Rating: 58] Favorites ----------- Power Improved Deuterium Engine Engine Improved Deuterium Engine Power Core Micro Nuclear Core Propulsion Wheel Treads Light Treads Leg Makeshift Leg Wheel Wheel Hover Unit Gravmag System Flight Unit Xenon Bombardment Thruster Utility Large Storage Unit Device Seismic Detector Storage Large Storage Unit Processor Advanced Targeting Computer Hackware Hacking Suite Protection Makeshift Light Armor Plating Weapon Grenade Launcher Energy Gun Shock Rifle Energy Cannon Heavy Plasma Cannon Ballistic Gun Subdweller Machine Gun Ballistic Cannon Heavy Flak Cannon Launcher Grenade Launcher Special Weapon Mining Laser Piercing Weapon CR-A16's Pointy Stick Build | -11 -10 -10 -8 -8 -6 -6 -6 -6 ------- Run | Yrd Mat Sub Rec Scr Fac Low Low Zio Slots Evolved 8 | . . . . . 8 . . . Power 1 | . . . . . 1 . . . Propulsion 1 | . . . . . 1 . . . Utility 4 | . . . . . 4 . . . Weapon 2 | . . . . . 2 . . . Parts Attached 136 | 3 31 29 5 20 17 9 20 2 Power 12 | . 1 3 . 2 3 1 2 . Engine 9 | . 1 3 . 2 1 1 1 . Core 3 | . . . . . 2 . 1 . Reactor . | . . . . . . . . . Propulsion 41 | 2 16 8 2 3 4 . 5 1 Treads 19 | . 8 6 . . 3 . 2 . Leg 1 | . . . . . . . . 1 Wheel 19 | 2 8 2 2 2 1 . 2 . Hover 1 | . . . . . . . 1 . Flight 1 | . . . . 1 . . . . Utility 46 | 1 8 5 3 11 7 2 9 . Device 28 | 1 6 4 2 6 6 . 3 . Storage 10 | . 1 . 1 4 . 1 3 . Processor 4 | . 1 1 . . . 1 1 . Hackware 1 | . . . . . . . 1 . Protection 3 | . . . . 1 1 . 1 . Artifact . | . . . . . . . . . Weapon 37 | . 6 13 . 4 3 6 4 1 Energy Gun 5 | . . . . . 1 2 2 . Energy Cannon 5 | . . . . 3 1 1 . . Ballistic Gun 16 | . 5 8 . . . 1 2 . Ballistic Cannon 3 | . . . . 1 1 1 . . Launcher 4 | . . 3 . . . 1 . . Special Weapon 3 | . 1 2 . . . . . . Impact Weapon . | . . . . . . . . . Slashing Weapon . | . . . . . . . . . Piercing Weapon 1 | . . . . . . . . 1 Special Melee Weapon . | . . . . . . . . . Unidentified Prototypes 1 | . . . . . . 1 . . Parts Lost 38 | . . 4 . . 14 1 13 6 Power 8 | . . 2 . . 2 . 2 2 Propulsion 9 | . . . . . 2 . 4 3 Utility 11 | . . 1 . . 6 . 3 1 Weapon 10 | . . 1 . . 4 1 4 . Highest Loss Streak 10 | . . 2 . . 10 1 10 6 To Critical Strikes 2 | . . . . . . . . 2 Average Slot Usage (%) 82 | . 99 99 100 76 79 76 79 91 Engine 9 | . 13 13 14 9 5 6 5 5 Core 1 | . . . . . 4 6 5 5 Treads 5 | . 6 27 4 . 3 20 6 5 Wheel 15 | . 20 . 23 23 8 . . 5 Device 9 | . 12 7 13 8 20 6 3 19 Storage 13 | . 14 14 14 13 6 7 17 6 Processor 1 | . 1 6 . . . 1 4 6 Energy Gun 2 | . . . . . 4 9 10 9 Energy Cannon 1 | . . . . 1 5 6 3 . Ballistic Gun 9 | . 27 25 14 7 . 2 4 8 Ballistic Cannon 1 | . . . . 1 10 2 . . Launcher 6 | . . 1 14 11 . 3 3 . Peak Build Rating 58 | 7 10 16 15 24 52 40 56 58 Average Rating 18 | 6 8 11 12 10 42 34 39 52 On Entrance 20 | 6 7 10 15 12 23 14 40 56 Naked Turns 903 | . . . . 903 . . . . Heaviest Build 70 | 13 30 38 34 46 70 65 67 56 Greatest Support 60 | 20 40 40 40 28 40 60 60 20 Greatest Overweight (x) 17 | . 2 1 1 9 13 1 17 9 Average Overweight (x) 1 | . . . . . 1 1 3 3 Largest Inventory Capacity 15 | 8 15 15 15 15 15 15 15 15 Average Capacity 13 | 8 11 15 15 13 15 15 15 15 Most Carried 15 | 8 15 15 15 15 15 6 15 15 Average Carried 9 | 5 10 14 14 10 13 2 3 13 Final Capacity 15 | 8 15 15 15 15 15 15 15 15 Final Carried 15 | 6 15 15 15 15 7 4 12 15 Class Distribution -------------------- 76% | Mutant 11% | Derelict-Bomber 6% | Derelict-Gunner 3% | Derelict-Skirmisher Dominant Class ---------------- Mutant | -10/Materials Mutant | -10/Subcaves Mutant | -8/Recycling Mutant | -8/Scraptown Derelict-Skirmisher | -6/Factory Derelict-Bomber | -6/Lower Caves Derelict-Bomber | -6/Lower Caves Derelict-Gunner | -6/Zion Resources | -11 -10 -10 -8 -8 -6 -6 -6 -6 ----------- Run | Yrd Mat Sub Rec Scr Fac Low Low Zio Matter Collected 3152 | 280 434 569 232 325 576 202 515 19 Remotely . | . . . . . . . . . Salvage Created 1724 | 305 434 386 . . 274 160 165 . Parts 132 | 30 36 28 . . 22 7 9 . Haulers Intercepted 1 | . 1 . . . . . . . Recyclers Shooed 1 | . 1 . . . . . . . Parts Field Recycled . | . . . . . . . . . Retrieved Matter . | . . . . . . . . . Parts Self-Destructed 22 | . . 11 . . . 4 7 . Prevented . | . . . . . . . . . Kills | -11 -10 -10 -8 -8 -6 -6 -6 -6 ------- Run | Yrd Mat Sub Rec Scr Fac Low Low Zio Combat Hostiles Destroyed 44 | . 11 16 . . 5 5 7 . Guns 23 | . 11 7 . . 3 . 2 . Cannons 8 | . . . . . 2 3 3 . AOE 13 | . . 9 . . . 2 2 . Classes Destroyed 14 | 3 4 3 . . 3 . 1 . Worker 5 | 4 . . . . 1 . . . Builder 1 | . . . . . 1 . . . Tunneler 11 | 9 1 . . . 1 . . . Hauler 1 | . 1 . . . . . . . Recycler 2 | 1 1 . . . . . . . Turret 2 | . . 2 . . . . . . Watcher 6 | . 3 . . . 3 . . . Swarmer 23 | . 9 6 . . . 4 4 . Grunt 6 | . 2 1 . . 1 1 1 . Sentry 1 | . . 1 . . . . . . Hunter 1 | . . . . . 1 . . . Programmer 4 | . . . . . 3 . 1 . Subdweller 8 | . . 8 . . . . . . Packrat 1 | . . . . . . 1 . . Thief 1 | . . . . . . . 1 . Best Kill Streak 5 | 4 3 5 . . 2 4 3 . Combat Bots Only 5 | . 3 5 . . 1 4 3 . Max Kills in Single Turn 2 | 1 2 2 . . 2 2 1 . Gunslinging 1 | . 1 1 . . . . . . Exploded 2 | . . 2 . . . 1 1 . Melee . | . . . . . . . . . Uniques/NPCs Destroyed . | . . . . . . . . . Combat | -11 -10 -10 -8 -8 -6 -6 -6 -6 -------- Run | Yrd Mat Sub Rec Scr Fac Low Low Zio Hostile Shots Fired 474 | . 49 63 . . 172 15 80 95 Missed 154 | . 10 22 . . 62 4 17 39 Damage Taken 5068 | . 323 614 . . 1776 429 852 1074 Core 1017 | . 42 90 . . 187 80 164 454 Absorbed by Shields 120 | . . . . . . . . 120 Regen/Repaired (Parts) 14 | . 14 . . . . . . . Core Remaining (%) 73 | 100 . . . 47 . . . . Volleys Fired 190 | 53 51 40 . . 29 6 11 . Largest 4 | 2 2 2 . . 4 4 4 . Hottest 248 | 60 100 100 . . 246 227 248 . Shots Fired 368 | 102 93 60 . . 60 24 28 1 Gun 277 | 102 92 37 . . 22 8 15 1 Cannon 62 | . . . . . 38 13 11 . Launcher 16 | . . 11 . . . 3 2 . Special 13 | . 1 12 . . . . . . Kinetic 216 | 53 92 42 . . 21 8 . . Thermal 128 | 49 1 12 . . 39 7 20 . Explosive 11 | . . 6 . . . 3 2 . Electromagnetic 13 | . . . . . . 6 6 1 Robot Hit Streak 11 | 9 11 11 . . 7 4 7 . Robot Miss Streak 13 | 3 6 2 . . 13 2 1 1 Penetration Max . | . . . . . . . . . Secondary Targets 2 | . 1 1 . . . . . . Max Gunslinging Chain 1 | . 1 1 . . . . . . Shots Hit Robots 195 | 63 49 23 . . 41 11 8 . Core Hits 115 | 22 23 27 . . 24 10 9 . Critical Kills . | . . . . . . . . . Critical Parts Destroyed . | . . . . . . . . . Critical Strikes 1 | . . . . . . 1 . . Blast 1 | . . . . . . 1 . . Melee Attacks . | . . . . . . . . . Impact . | . . . . . . . . . Slashing . | . . . . . . . . . Piercing . | . . . . . . . . . Sneak Attacks . | . . . . . . . . . Combat Hostiles . | . . . . . . . . . Follow-up Attacks . | . . . . . . . . . Damage Inflicted 4407 | 611 600 1273 . . 1102 383 438 . Guns 2268 | 611 588 442 . . 477 67 83 . Cannons 892 | . . . . . 530 154 208 . Explosions 1135 | . . 831 . . . 157 147 . Melee . | . . . . . . . . . Ramming 112 | . 12 . . . 95 5 . . Kinetic 1977 | 217 588 752 . . 348 72 . . Thermal 1396 | 394 . . . . 659 97 246 . Explosive 825 | . . 521 . . . 157 147 . Electromagnetic 97 | . . . . . . 52 45 . Impact . | . . . . . . . . . Slashing . | . . . . . . . . . Piercing . | . . . . . . . . . Highest Corruption 15 | . 2 2 2 . 13 15 15 15 Average Corruption 7 | . 2 2 2 . 5 14 15 15 Corruption Purged . | . . . . . . . . . Corruption Blocked . | . . . . . . . . . Effects 253 | . 32 26 5 . 21 26 118 25 Message Errors 70 | . 6 7 . . 5 8 34 10 Matter Fused 60 | . 8 6 3 . 5 7 28 3 Heat Flow Errors 27 | . 3 3 . . 2 4 13 2 Energy Discharges 29 | . 7 4 . . . 1 12 5 Parts Rejected 3 | . . . . . 2 . . 1 Parts Fused 3 | . 1 . 1 . . . 1 . Data Loss (minor) 35 | . 4 4 1 . 2 4 19 1 Data Loss (major) 9 | . . 2 . . 1 1 5 . Misfires 5 | . . . . . 1 1 2 1 Alerts 5 | . 2 . . . 2 . 1 . Misdirections 3 | . . . . . 1 . . 2 Weapon Failures 4 | . 1 . . . . . 3 . Overload Shots . | . . . . . . . . . Overflow Damage . | . . . . . . . . . Projectiles . | . . . . . . . . . Explosions . | . . . . . . . . . Melee . | . . . . . . . . . Knockbacks 7 | . . . . . 6 1 . . Impact . | . . . . . . . . . Kinetic 7 | . . . . . 6 1 . . Secondary . | . . . . . . . . . Self-Inflicted Damage 122 | . 2 35 . . 44 41 . . Shots 2 | . . 1 . . . 1 . . Rammed 19 | . 4 . . . 15 . . . Targets Rammed 20 | . 4 . . . 15 1 . . Kicked . | . . . . . . . . . Crushed 1 | . . . . . . 1 . . Highest Temperature 845 | 80 162 240 . . 448 845 587 195 Average Temperature 132 | 26 69 93 . . 137 244 157 89 Received Heat Transfer 606 | . 36 126 . . 165 . 189 90 Effects 23 | . . . . . 2 10 11 . Shutdowns 5 | . . . . . . 3 2 . Energy Bleed 1 | . . . . . . 1 . . Interference 1 | . . . . . . 1 . . Matter Decay 5 | . . . . . 2 2 1 . Damage (minor) 5 | . . . . . . 3 2 . Damage (major) 6 | . . . . . . . 6 . Siege Activations . | . . . . . . . . . Robots Corrupted . | . . . . . . . . . Combat Hostiles . | . . . . . . . . . Parts Fried . | . . . . . . . . . Impact Corruptions . | . . . . . . . . . Robots Melted . | . . . . . . . . . Combat Hostiles . | . . . . . . . . . Parts Melted 6 | 1 . . . . 3 1 1 . Heat Transferred 2658 | 900 . . . . 1234 150 374 . Parts Sabotaged . | . . . . . . . . . Parts Stolen 1 | . . . . . . . 1 . Parts Stripped . | . . . . . . . . . Power Chain Reactions . | . . . . . . . . . Alert | -11 -10 -10 -8 -8 -6 -6 -6 -6 ------- Run | Yrd Mat Sub Rec Scr Fac Low Low Zio Peak Influence 152 | 70 152 . 96 . 137 . . . Initial 96 | . . . 96 . . . . . Average 47 | 24 49 . 82 . 43 . . . Maximum Alert Level . | . . . . . . . . . Low Security (%) 100 | 100 100 . 100 . 100 . . . Level 1 . | . . . . . . . . . Level 2 . | . . . . . . . . . Level 3 . | . . . . . . . . . Level 4 . | . . . . . . . . . Level 5 . | . . . . . . . . . High Security . | . . . . . . . . . Max Security . | . . . . . . . . . Squads Dispatched 7 | . 1 . . . 6 . . . Investigation 1 | . 1 . . . . . . . Extermination 2 | . . . . . 2 . . . Reinforcement . | . . . . . . . . . Assault 1 | . . . . . 1 . . . Garrison 3 | . . . . . 3 . . . Intercept . | . . . . . . . . . Searches Triggered . | . . . . . . . . . Construction Impeded . | . . . . . . . . . Haulers Reinforced . | . . . . . . . . . Active Scanning Responses . | . . . . . . . . . Cargo Convoy Interrupts . | . . . . . . . . . Stealth | -11 -10 -10 -8 -8 -6 -6 -6 -6 --------- Run | Yrd Mat Sub Rec Scr Fac Low Low Zio Distress Signals . | . . . . . . . . . Communications Jammed . | . . . . . . . . . Distress Signals . | . . . . . . . . . Times Spotted 81 | . 21 16 . . 24 5 8 7 Peak Tracking Total 5 | . 4 4 . . 5 4 3 5 Tactical Retreats 8 | . 3 1 . . 1 . . 3 Traps | -11 -10 -10 -8 -8 -6 -6 -6 -6 ------- Run | Yrd Mat Sub Rec Scr Fac Low Low Zio Traps Triggered 3 | . 3 . . . . . . . Indirectly . | . . . . . . . . . Trap Hack Attempts . | . . . . . . . . . Triggered . | . . . . . . . . . Disarmed . | . . . . . . . . . Reprogrammed . | . . . . . . . . . Reused 4 | . . . . . 3 . 1 . Traps Extracted . | . . . . . . . . . Installed 5 | . . 1 . . 3 . 1 . Triggered 5 | . . . . . 3 1 1 . Most Traps Carried 4 | . . 1 1 4 4 1 1 . Machines | -11 -10 -10 -8 -8 -6 -6 -6 -6 ---------- Run | Yrd Mat Sub Rec Scr Fac Low Low Zio Machines Disabled 5 | . 1 4 . . . . . . Max in Single Turn 3 | . 1 3 . . . . . . Garrison Access 1 | . . . . . 1 . . . Machines Repaired . | . . . . . . . . . Machines Dismantled . | . . . . . . . . . Machines Sabotaged . | . . . . . . . . . Overloaded Fab Kills . | . . . . . . . . . Hacking | -11 -10 -10 -8 -8 -6 -6 -6 -6 --------- Run | Yrd Mat Sub Rec Scr Fac Low Low Zio Machines Accessed 23 | . 5 1 6 8 2 . . 1 Terminals 7 | . 2 . 4 . 1 . . . Fabricators 1 | . . . . . 1 . . . Repair Stations 1 | . 1 . . . . . . . Recycling Units 2 | . 2 . . . . . . . Scanalyzers . | . . . . . . . . . Garrison Access . | . . . . . . . . . Total Hacks 117 | . 10 4 36 57 4 . . 6 Successful 104 | . 8 4 28 57 1 . . 6 Failed 13 | . 2 . 8 . 3 . . . Catastrophic 1 | . . . . . 1 . . . Database Lockouts . | . . . . . . . . . Manual 10 | . 8 . 2 . . . . . Terminals 18 | . 5 . 11 . 2 . . . Fabricators 2 | . . . . . 2 . . . Repair Stations 2 | . 2 . . . . . . . Recycling Units 3 | . 3 . . . . . . . Scanalyzers . | . . . . . . . . . Garrison Access . | . . . . . . . . . Terminal Hacks 95 | . . 4 27 57 1 . . 6 Record 77 | . . 4 24 48 1 . . . Part Schematic 6 | . . . . . . . . 6 Robot Schematic 2 | . . . 2 . . . . . Robot Analysis 8 | . . . . 8 . . . . Derelict Proto ID Bank 1 | . . . . 1 . . . . Release Object 1 | . . . 1 . . . . . Fabricator Hacks . | . . . . . . . . . Repair Station Hacks 2 | . 2 . . . . . . . Scan Component 1 | . 1 . . . . . . . Repair 1 | . 1 . . . . . . . Recycling Unit Hacks . | . . . . . . . . . Scanalyzer . | . . . . . . . . . Garrison Access Hacks . | . . . . . . . . . Unauthorized Hacks 7 | . 6 . 1 . . . . . Terminals 4 | . 3 . 1 . . . . . Botnet 1 | . 1 . . . . . . . Operators 1 | . . . 1 . . . . . Skim 2 | . 2 . . . . . . . Fabricators . | . . . . . . . . . Repair Stations . | . . . . . . . . . Recycling Units 3 | . 3 . . . . . . . Monitor 1 | . 1 . . . . . . . Reject 1 | . 1 . . . . . . . Mask 1 | . 1 . . . . . . . Scanalyzers . | . . . . . . . . . Garrison Access . | . . . . . . . . . Data Cores Recovered . | . . . . . . . . . Used . | . . . . . . . . . Hacking Detections 10 | . 4 . 4 . 2 . . . Full Trace Events . | . . . . . . . . . Feedback Events . | . . . . . . . . . Feedback Blocked . | . . . . . . . . . Robot Schematics Acquired 4 | . . . 2 . . . . 2 Robots Built . | . . . . . . . . . Authchips . | . . . . . . . . . Time . | . . . . . . . . . Total Robot Build Rating . | . . . . . . . . . Part Schematics Acquired 20 | . . . . . . . . 20 Parts Built . | . . . . . . . . . Authchips . | . . . . . . . . . Time . | . . . . . . . . . Total Part Build Rating . | . . . . . . . . . Parts Repaired 1 | . 1 . . . . . . . Time 26 | . 26 . . . . . . . Parts Recycled . | . . . . . . . . . Recycled Matter . | . . . . . . . . . Retrieved Matter . | . . . . . . . . . Retrieved Components . | . . . . . . . . . Parts Scanalyzed . | . . . . . . . . . Part Schematics Acquired . | . . . . . . . . . Parts Damaged . | . . . . . . . . . Bothacking | -11 -10 -10 -8 -8 -6 -6 -6 -6 ------------ Run | Yrd Mat Sub Rec Scr Fac Low Low Zio Used RIF Installer . | . . . . . . . . . Robots Hacked . | . . . . . . . . . Non-combat . | . . . . . . . . . Combat . | . . . . . . . . . Robot Hacks Applied . | . . . . . . . . . Relay Couplers Released . | . . . . . . . . . Fabnet Peak Effective % . | . . . . . . . . . Robots Rewired . | . . . . . . . . . Allies Hacked . | . . . . . . . . . Hacks Repelled . | . . . . . . . . . Allies | -11 -10 -10 -8 -8 -6 -6 -6 -6 -------- Run | Yrd Mat Sub Rec Scr Fac Low Low Zio Total Allies . | . . . . . . . . . Largest Group . | . . . . . . . . . Highest-Rated Group . | . . . . . . . . . Highest-Rated Ally . | . . . . . . . . . Total Orders . | . . . . . . . . . Ally Attacks . | . . . . . . . . . Total Damage . | . . . . . . . . . Kills . | . . . . . . . . . Allies Corrupted . | . . . . . . . . . Allies Melted . | . . . . . . . . . Intel | -11 -10 -10 -8 -8 -6 -6 -6 -6 ------- Run | Yrd Mat Sub Rec Scr Fac Low Low Zio Robot Analysis Total 8 | . . . . 8 . . . . Derelict Logs Recovered 4 | . . . . 2 . 1 1 . Drone Launches . | . . . . . . . . . Drone Recoveries . | . . . . . . . . . Exploration | -11 -10 -10 -8 -8 -6 -6 -6 -6 ------------- Run | Yrd Mat Sub Rec Scr Fac Low Low Zio Turns Passed 21345 | 650 1986 1875 464 11054 1243 685 2793 595 Spaces Moved 15939 | 111 791 1038 444 11239 930 259 824 303 Core 1868 | . 6 . . 1746 1 . 109 6 Treads 2047 | . 196 986 45 . 11 259 550 . Legs 146 | 30 . . . . . . . 116 Wheels 11878 | 81 589 52 399 9493 918 . 165 181 Hover . | . . . . . . . . . Flight . | . . . . . . . . . Fastest Speed 50 | 80 80 95 95 50 105 249 150 150 Average Speed 115 | 90 108 156 101 92 117 249 329 192 Slowest Speed 900 | 120 160 160 160 500 700 249 900 500 Overloaded Moves . | . . . . . . . . . Propulsion Burnouts . | . . . . . . . . . Robots Hopped . | . . . . . . . . . Cave-ins Triggered 1 | . . . . . . 1 . . Exploration Rate (%) 44 | 5 64 40 57 97 14 42 72 12 Regions Visited 8 Branch Regions 6 Pre-discovered Areas 5 | . . 1 . 4 . . . . Known Exits Taken 5 | . . 1 . 1 1 1 1 . Unknown Exits Taken 3 | 1 1 . 1 . . . . . Scrap Searched 17 | . . 9 . 4 . 2 2 . Spaces Dug 1 | . 1 . . . . . . . Terrain Destroyed 129 | . 1 59 . . 2 38 29 . Melee . | . . . . . . . . . Projectile 13 | . 1 . . . 2 5 5 . AOE 116 | . . 59 . . . 33 24 . Terrain Rammed . | . . . . . . . . . Walls Destroyed . | . . . . . . . . . Machines Disabled . | . . . . . . . . . Actions | -11 -10 -10 -8 -8 -6 -6 -6 -6 --------- Run | Yrd Mat Sub Rec Scr Fac Low Low Zio Total 18545 | 569 1818 1198 456 11987 1032 283 881 321 Wait 1901 | 398 919 61 . 499 20 4 . . Move 15931 | 110 790 1037 443 11238 929 258 823 303 Hop . | . . . . . . . . . Pick Up 196 | 3 17 16 4 107 12 5 25 7 Fast Attach 12 | . 3 . . 5 3 . . 1 Attach 65 | 3 3 5 1 15 14 8 16 . Detach . | . . . . . . . . . Swap 62 | . 25 24 4 3 . 1 4 1 Drop 153 | 2 6 14 4 110 7 . 1 9 Fire 190 | 53 51 40 . . 29 6 11 . Melee . | . . . . . . . . . Ram 16 | . 1 . . . 15 . . . Kick . | . . . . . . . . . Crush 4 | . 3 . . . . 1 . . Escape Stasis . | . . . . . . . . . Rewire 10 | . . . . 10 . . . . Trap 5 | . . 1 . . 3 . 1 . Miscellaneous . | . . . . . . . . . Route ------- -11/Scrapyard -10/Materials (discovered 4 exits: [*Mat x2] / [*Min] / *Sub) -10/Subcaves (discovered 3 exits: *Mat x2 / *Rec) -8/Recycling (discovered 2 exits: *Fac / *Scr) -8/Scraptown (discovered 2 exits: *Fac x2) -6/Factory (discovered 6 exits: Fac x4 / *Low x2) -6/Lower Caves -6/Lower Caves (discovered 2 exits: *Fac / *Zio) -6/Zion (discovered 1 exit: *Pro) History --------- Turn | Location | Event 1 | -11/Scrapyard | Discovered new exit (range 3) 651 | -11/Scrapyard | Entered Materials 652 | -10/Materials | Build established: Mutant 736 | -10/Materials | Discovered new exit (range 16) 1395 | -10/Materials | Discovered new exit (range 9) 1584 | -10/Materials | Discovered new exit (range 16) 1721 | -10/Materials | Repaired Seismic Detector 1889 | -10/Materials | Discovered new exit (range 16) 2637 | -10/Materials | Entered Subcaves 2653 | -10/Subcaves | A swath of the cavern ceiling suddenly collapsed 2715 | -10/Subcaves | A Subdweller sparked back to life 2715 | -10/Subcaves | A Subdweller sparked back to life 2715 | -10/Subcaves | A Subdweller sparked back to life 3935 | -10/Subcaves | Visited Clippyterm 3940 | -10/Subcaves | Identified exit to Materials 3940 | -10/Subcaves | Identified exit to Recycling 3940 | -10/Subcaves | Learned location of Deep Caves (-6) 4244 | -10/Subcaves | Disturbed a concealed Subdweller 4353 | -10/Subcaves | Shifting Twisted Machinery released Sub. Machine Gun 4359 | -10/Subcaves | Shifting Twisted Machinery released Spk. Treads 4482 | -10/Subcaves | Core integrity fell below 50% 4512 | -10/Subcaves | Entered Recycling 4880 | -8/Recycling | Scanned before Scraplab entrance 4910 | -8/Recycling | Discovered new exit (range 13) 4945 | -8/Recycling | Entered Scraplab 4973 | -8/Recycling | Discovered new exit (range 3) 4976 | -8/Recycling | Entered Scraptown 4976 | -8/Scraptown | System corruption cleaned by C-Scrubber 5472 | -8/Scraptown | Scanned Subdweller tech in exchange for log data 5475 | -8/Scraptown | Learned Research trap positions 5476 | -8/Scraptown | Learned Research stockpile data 5500 | -8/Scraptown | Discovered new exit (range 3) 5695 | -8/Scraptown | Visited The Evicted 5771 | -8/Scraptown | Visited Cave Peace 5839 | -8/Scraptown | Visited Fellowship of the Rings 5886 | -8/Scraptown | Visited UFD Registry 5886 | -8/Scraptown | Registered with UFD as "Waveback" 5931 | -8/Scraptown | Visited SPCMW 6181 | -8/Scraptown | Visited TADAMA 6666 | -8/Scraptown | Visited Junk Repository 6738 | -8/Scraptown | Visited Red Mages 7032 | -8/Scraptown | Visited Abandonware Association 7056 | -8/Scraptown | Learned abandonware demo "HACKBUD.EXE" 7056 | -8/Scraptown | Learned abandonware demo "REBOOT5.EXE" 7084 | -8/Scraptown | Visited Derelict Rescue Squad 7097 | -8/Scraptown | Found DRS Beacon 7137 | -8/Scraptown | Visited Science Guys 7355 | -8/Scraptown | Visited Analyses Database 7469 | -8/Scraptown | Visited Research Penetration Think Tank 7498 | -8/Scraptown | Visited Infowarlord's Domain 7532 | -8/Scraptown | Visited Cartography Club 7950 | -8/Scraptown | Learned location of Extension (-5) 7950 | -8/Scraptown | Learned location of Testing (-2) 7950 | -8/Scraptown | Learned 16 Factory zone layouts 7950 | -8/Scraptown | Learned 4 Access zone layouts 7950 | -8/Scraptown | Learned 4 Recycling zone layouts 7950 | -8/Scraptown | Learned 12 Lower Caves zone layouts 7950 | -8/Scraptown | Learned 16 Lower Caves zone layouts 7950 | -8/Scraptown | Learned 8 Upper Caves zone layouts 7950 | -8/Scraptown | Learned Storage emergency access door positions 7950 | -8/Scraptown | Learned location of 2 exits from Factory 7950 | -8/Scraptown | Learned location of 1 exit from Lower Caves 7950 | -8/Scraptown | Learned location of 1 exit from Upper Caves 7950 | -8/Scraptown | Identified exit to Factory 8196 | -8/Scraptown | Visited Curators Association 8257 | -8/Scraptown | Visited Science Testing Area 8292 | -8/Scraptown | Visited Scrapoid Pod Storage 11091 | -8/Scraptown | Found Relay Coupler [Proto] 11215 | -8/Scraptown | Found DRS Beacon 11217 | -8/Scraptown | Found DRS Beacon 11219 | -8/Scraptown | Found DRS Beacon 12878 | -8/Scraptown | Found Scrapoid Pod 12931 | -8/Scraptown | Found Scrap Suit 12933 | -8/Scraptown | Found Scrap Suit 12954 | -8/Scraptown | Found Scrap Suit 16030 | -8/Scraptown | Entered Factory 16030 | -6/Factory | Evolved 8 slots: Power x1, Propulsion x1, Utility x4, Weapon x2 16031 | -6/Factory | Identified exit to Factory 16031 | -6/Factory | Identified exit to Lower Caves 16642 | -6/Factory | Build established: Derelict-Skirmisher 16869 | -6/Factory | Garrison activated, responded to threat 17216 | -6/Factory | System corruption reached 10% 17273 | -6/Factory | Entered Lower Caves 17274 | -6/Lower Caves | Identified exit to Lower Caves 17304 | -6/Lower Caves | Lost 10 parts (2p1n4u3w) 17450 | -6/Lower Caves | Learned location of 1 exit from Factory 17545 | -6/Lower Caves | Build established: Derelict-Bomber 17603 | -6/Lower Caves | Crushed by falling debris 17958 | -6/Lower Caves | Entered another Lower Caves area 18078 | -6/Lower Caves | Identified exit to Zion 19753 | -6/Lower Caves | Attracted the attention of an 0b10 checkpoint 19778 | -6/Lower Caves | Core integrity fell below 50% 19808 | -6/Lower Caves | Lost 10 parts (2p2n2u4w) 20151 | -6/Lower Caves | Build established: Derelict-Gunner 20326 | -6/Lower Caves | Found DCF Scrap (15 items) 20751 | -6/Lower Caves | Entered Zion 20752 | -6/Zion | Identified exit to Proximity Caves 20885 | -6/Zion | Found Unknown Piercing Weapon 21045 | -6/Zion | Identified CR-A16's Pointy Stick 21195 | -6/Zion | Attacked by Zionites 21288 | -6/Zion | Spotted IQ-XNF(B) 21288 | -6/Zion | Spotted S2-PRJ(B) 21333 | -6/Zion | Core integrity fell below 20% 21346 | -6/Zion | Destroyed by IQ-XNF(B) with Slug Cannon Last Messages --------------- 21291_ System corrupted: Particle Charger rejected. 21293_ System Quarantine Field Array disabled. 21298_ Lgt. Nuclear Core destroyed. 21302_ Lgt. Ion Engine destroyed. 21311_ :N SBC 5BL88GEV&A:I|PI0DLLX2 21311_ Slug penetrates System Quarantine Field Array. 21318_ Critical hit (Burn: +37). 21319_ Penetrated by Slug. 21322_ Acquired 5 matter. 21322_ Mak. Leg destroyed. 21334_ Acquired 5 matter. 21335_ Acquired 8 matter. 21336_ Critical hit (Destroy). 21336_ Spk. Medium Treads destroyed. 21336_ Imp. Hardlight Generator destroyed. 21336_ Penetrated by Slug. 21338_ Critical hit (Destroy). 21338_ Arm. Wheel destroyed. 21339_ Acquired 1 matter. 21344_ System corrupted: Energy discharge (-39). Map ----- +----------------------------------------------------+ | ??????????????????????### ##????????????????????? | | ?????????????????????## #????????????????????? | | ?????????????????????# > ##???????????????????? | | ?????????????????????# #???????????????????? | | ?????????????????????## #???????????????????? | | ??????????????????????# #???????????????????? | | ??????????????????????# ##???????????????????? | | ??????????????????????## ##????????????????????? | | ???????????????????????# ##?????????????????????? | | ???????????????????????# #????#####?????????????? | | ???????????????????????# #???## ##????????????? | | ???????????????????????# #???# #????????????? | | ??????????????########## #???# #????????????? | | ?????????????##* ## ## #???# #?????????????? | | ?????????????# = # # #??## ##?????????????? | | ?????????????# = #### #??????????????? | | ?????????????#/ !! ####???????????? | | ?????????????## ## ### #???????????? | | ??????????????##### #?# <<< #???????????? | | ####??????????????# #?# <$< #???????????? | | # "############??# ## <<< #???????????? | | # """"""""""""#??########## #???????????? | | # """ "" "#??????????## #???????????? | | ;########### [[[ #???????????? | | %% / gc #???????????? | | ! % %% @% #???????????? | | % ""###;###;## ###### ##???????????? | | # """""" #??##""##### ##"" ##???????????? | | # """"""""""""#??#""""## ##" ###????#????? | | # "############??#"""" ##"" #??? #????? | | ###???????????????# """ ##### ##?? ####?? | | ??????????????????# X ##?? #?? | | ??????????????????# ##?? #?? | | ?????????????????# ## ## #??# #??? | | ?????????????????## ## ### ### #?# #???? | | ??????????????????######### ####?# ## #?????? | | ??????????????????????????# #????# #??????? | | ??????????????????????????# #???# # ##??????? | | ??????????????????????????# #??# #? #????????? | | ??????????????????????????## ##??# #??#????????? | | ????????????????????????????###???# #???????????? | | ?????????????????????????????????## ##??????????? | | ?????????????????????????????????# #??????????? | | ?????????????????????????????????# #??????????? | | ?????????????????????????????????## ##??????????? | | ????????????????????????????????## #??????????? | | ????????????????????????????????# ##??????????? | | ????????????????????????????????## #??????????? | | ????????????????????????????????# #??????????? | | ????????????????????????????????# ##??????????? | +----------------------------------------------------+ Best States ------------- Heat Dissipation 51 Coolant Potential 65 Energy Generation 28 Energy Capacity 985 Matter Stores 331 Matter Capacity 450 Sight Range 21 Robot Scan Range 16 Terrain Scan Range 16 Terrain Scan Density 210 Cloak Strength 2 Base Temperature (-) 100 Armor Coverage 100 Phase Shifting 5 Evasion (%) 50 Targeting Accuracy 8 Recoil Reduction 3 Particle Charging 15 Offensive Hacking 10 Item Schematics ----------------- Adv. Terrain Scanner | -6/Zion | Archive Lance | -6/Zion | Archive Fission Core | -6/Zion | Archive Enh. Gauss Cannon | -6/Zion | Archive Lgt. Fission Core | -6/Zion | Archive Hvy. Phase Cannon | -6/Zion | Archive Imp. Core Shielding | -6/Zion | Archive Imp. Focal Shield | -6/Zion | Archive HERF Cannon | -6/Zion | Archive Centrium Wheel | -6/Zion | Archive Recoil Nullifier | -6/Zion | Archive Hvy. Machine Gun | -6/Zion | Archive Hpw. Shock Rifle | -6/Zion | Archive Imp. Coolant Injector | -6/Zion | Archive Riot Gun | -6/Zion | Free Flamer | -6/Zion | Free Hvy. Riot Gun | -6/Zion | Free Ripper | -6/Zion | Free Plasma Flamer | -6/Zion | Free Phasing Sabre | -6/Zion | Free Robot Schematics ------------------ O-16 Technician | -8/Recycling | Hacked K-01 Serf | -8/Recycling | Hacked A-02 Transporter | -6/Zion | Archive L-41 Fighter | -6/Zion | Archive Fabricated ------------ Nothing Alien Tech Used ----------------- None Achievements -------------- None Challenges ------------ None Game ------ Seed ShrapnelCouplerCannon Manual? 0 Play Time 01:59:57 Cumulative 52.1 hours Start 2024.11.17 @ 05:44:46 End 2024.11.17 @ 09:02:44 Sessions 1 Manual Loads 0 Difficulty Rogue Special Mode None Game No. 94 Rogue 94 Adventurer 0 Explorer 0 Win Type - Total 0 Types 0/0/0/0/0/0/0/0/0 Lore% 35 Gallery% 31 Achievement% 26 Wizard Run 0 Options --------- Layout 1 ASCII 0 Keyboard 0 Movement Arrows Keybinds 0 Fullscreen 1 Font 32/SmallcapsGlow Map View 55x47 Zoom Use 13% Tactical HUD 1 Map Filters NONE Filters NONE Steam 1 RUN: 80306593-e337-4716-9075-fa3a952cb596